fUSD/lending_fUSD_20260510
["ID","MTS","AMOUNT","RATE_DAILY","PERIOD"]
[421926061,1778342402000,183.0,0.00028941,120]
[421926064,1778342463000,273.634,0.00028661,120]
[421926067,1778342491000,918.0,0.00030137,120]
[421926068,1778342495000,2553.11387223,0.000114,2]
[421926073,1778342530000,3068.61892738,0.00030136,120]
[421926076,1778342552000,4560.63996559,8e-05,2]
[421926078,1778342557000,3564.50683117,0.00011,2]
[421926077,1778342557000,1886.59843318,0.00011,2]
[421926079,1778342602000,447.77376538,0.00029713,120]
[421926080,1778342615000,319.83840384,0.00029713,120]
[421926082,1778342703000,184.0,0.00028954,120]
[421926083,1778342709000,1112.92988727,0.0001,2]
[421926084,1778342732000,10000.01,0.000107,2]
[421926085,1778342732000,10000.01,0.000107,2]
[421926090,1778342876000,-10000.01,0.000107,2]
[421926089,1778342876000,-4772.57328156,0.000107,2]
[421926088,1778342876000,-250.0,0.000107,2]
[421926087,1778342876000,-300.0,0.00010699,2]
[421926093,1778342877000,-10000.01,0.000107,2]
[421926092,1778342877000,-10000.01,0.000107,2]
[421926091,1778342877000,-10000.01,0.000107,2]
[421926094,1778342878000,-10000.01,0.000107,2]
[421926096,1778342878000,-250.0,0.00011769,2]
[421926095,1778342878000,-8821.64735138,0.000107,2]
[421926097,1778342878000,-500.0,0.00011769,2]
[421926114,1778342879000,-150.0,0.00016058,21]
[421926112,1778342879000,-2500.0,0.00016039,2]
[421926111,1778342879000,-238.63069939,0.00016039,2]
[421926109,1778342879000,-155.12,0.00015895,2]
[421926108,1778342879000,-150.0,0.00015682,2]
[421926106,1778342879000,-150.0,0.00015682,2]
[421926107,1778342879000,-150.0,0.00015682,2]
[421926104,1778342879000,-150.0,0.00015682,2]
[421926101,1778342879000,-150.0,0.00015682,2]
[421926103,1778342879000,-150.0,0.00015682,2]
[421926102,1778342879000,-150.0,0.00015682,2]
[421926099,1778342879000,-150.0,0.00015682,2]
[421926100,1778342879000,-150.57011938,0.00015682,2]
[421926098,1778342879000,-150.0,0.00015682,2]
[421926105,1778342879000,-173.64100033,0.00015682,2]
[421926113,1778342879000,-2000.0,0.00016039,2]
[421926115,1778342879000,-2500.0,0.00016059,2]
[421926117,1778342879000,-1200.0,0.00016078,2]
[421926110,1778342879000,-300.0,0.00015967,2]
[421926128,1778342879000,-153.0,0.00016166,2]
[421926129,1778342879000,-152.0,0.00016166,2]
[421926127,1778342879000,-152.0,0.00016166,2]
[421926125,1778342879000,-249.99,0.00016166,2]
[421926126,1778342879000,-187.04,0.00016166,2]
[421926123,1778342879000,-150.0,0.00016079,2]
[421926130,1778342879000,-150.0,0.00016263,2]
[421926120,1778342879000,-153.0,0.00016079,2]
[421926122,1778342879000,-151.0,0.00016079,2]
[421926121,1778342879000,-151.0,0.00016079,2]
[421926118,1778342879000,-846.71,0.00016079,2]
[421926116,1778342879000,-300.0,0.00016078,2]
[421926119,1778342879000,-151.0,0.00016079,2]
[421926124,1778342879000,-2500.0,0.00016106,2]
[421926146,1778342880000,-1861.84,0.00016806,2]
[421926142,1778342880000,-164.4,0.00016438,2]
[421926141,1778342880000,-169.96,0.00016428,2]
[421926144,1778342880000,-199.99,0.0001673,2]
[421926143,1778342880000,-155.12,0.0001669,2]
[421926140,1778342880000,-152.0,0.00016415,2]
[421926139,1778342880000,-150.0,0.00016415,2]
[421926135,1778342880000,-152.0,0.00016307,2]
[421926138,1778342880000,-153.0,0.00016415,2]
[421926134,1778342880000,-151.0,0.00016296,2]
[421926132,1778342880000,-158.54,0.00016293,2]
[421926133,1778342880000,-151.0,0.00016294,2]
[421926131,1778342880000,-155.12,0.00016293,2]
[421926145,1778342880000,-151.0,0.00016748,2]
[421926137,1778342880000,-1543.67,0.00016415,2]
[421926147,1778342880000,-152.0,0.00016806,2]
[421926136,1778342880000,-150.0,0.00016348,2]
[421926150,1778342880000,-151.0,0.0001705,2]
[421926164,1778342880000,-151.0,0.00017099,2]
[421926163,1778342880000,-152.0,0.00017099,2]
[421926161,1778342880000,-155.12,0.00017087,2]
[421926162,1778342880000,-150.0,0.00017099,2]
[421926165,1778342880000,-150.0,0.00017099,2]
[421926160,1778342880000,-150.0,0.00017069,2]
[421926159,1778342880000,-151.0,0.00017062,2]
[421926158,1778342880000,-152.0,0.00017061,2]
[421926148,1778342880000,-150.0,0.00016844,2]
[421926156,1778342880000,-166.66,0.0001706,2]
[421926155,1778342880000,-150.0,0.0001706,2]
[421926154,1778342880000,-151.0,0.0001706,2]
[421926152,1778342880000,-151.0,0.0001706,2]
[421926153,1778342880000,-153.0,0.0001706,2]
[421926149,1778342880000,-151.0,0.0001705,2]
[421926151,1778342880000,-1407.26333864,0.0001705,2]
[421926157,1778342880000,-151.0,0.0001706,2]
[421926176,1778342881000,-301.50608055,0.00017438,2]
[421926173,1778342881000,-151.0,0.0001736,2]
[421926174,1778342881000,-153.0,0.00017398,2]
[421926175,1778342881000,-150.0,0.00017425,2]
[421926172,1778342881000,-153.0,0.00017351,2]
[421926168,1778342881000,-1098.85724377,0.00017348,2]
[421926171,1778342881000,-251.77109638,0.00017351,2]
[421926169,1778342881000,-1969.88636004,0.00017348,2]
[421926167,1778342881000,-178.51382984,0.00017348,2]
[421926166,1778342881000,-169.96,0.00017106,2]
[421926170,1778342881000,-150.0,0.00017349,2]
[421926178,1778342881000,-500.0,0.00017447,2]
[421926181,1778342881000,-500.0,0.00017447,2]
[421926179,1778342881000,-239.14878258,0.00017447,2]
[421926182,1778342881000,-500.0,0.00017447,2]
[421926183,1778342881000,-500.0,0.00017447,2]
[421926180,1778342881000,-38.2721409,0.00017447,2]
[421926186,1778342881000,-633.38686553,0.00017447,2]
[421926184,1778342881000,-500.0,0.00017447,2]
[421926187,1778342881000,-427.32814476,0.00017447,2]
[421926188,1778342881000,-500.0,0.00017447,2]
[421926190,1778342881000,-3293.13855541,0.00017448,2]
[421926189,1778342881000,-500.0,0.00017447,2]
[421926191,1778342881000,164.71025831,0.00029576,120]
[421926177,1778342881000,-150.0,0.00017447,2]
[421926185,1778342881000,-500.0,0.00017447,2]
[421926192,1778342882000,247.06538746,0.00029576,120]
[421926193,1778342895000,-300.0,0.00010699,2]
[421926195,1778342928000,-420.0,0.00011761,2]
[421926196,1778342929000,-420.0,0.00012928,2]
[421926198,1778342929000,-253.0,0.0001421,2]
[421926197,1778342929000,-167.0,0.00012928,2]
[421926199,1778342953000,-4493.73676635,0.00015,5]
[421926259,1778343032000,-60868.9375608,0.00017839,2]
[421926233,1778343032000,-300.0,0.00017447,2]
[421926231,1778343032000,-1392.84202822,0.00017348,2]
[421926232,1778343032000,-159.61374998,0.00017447,2]
[421926235,1778343032000,-152.0,0.00017448,2]
[421926234,1778343032000,-150.0,0.00017447,2]
[421926249,1778343032000,-500.0,0.00017473,2]
[421926245,1778343032000,-466.66074419,0.00017473,2]
[421926247,1778343032000,-500.0,0.00017473,2]
[421926236,1778343032000,-152.0,0.00017448,2]
[421926238,1778343032000,-278.2,0.00017448,2]
[421926243,1778343032000,-500.0,0.00017473,2]
[421926237,1778343032000,-150.0,0.00017448,2]
[421926253,1778343032000,-500.0,0.00017473,2]
[421926240,1778343032000,-500.0,0.00017473,2]
[421926242,1778343032000,-500.0,0.00017473,2]
[421926255,1778343032000,-155.12,0.00017485,2]
[421926256,1778343032000,-150.0,0.00017548,2]
[421926258,1778343032000,-169.96,0.00017784,2]
[421926257,1778343032000,-151.0,0.00017548,2]
[421926229,1778343032000,-522.0,0.0001715,2]
[421926251,1778343032000,-500.0,0.00017473,2]
[421926230,1778343032000,-2275.3482,0.00017348,2]
[421926224,1778343032000,-2500.0,0.000165,2]
[421926261,1778343032000,-397952.775055,0.00017839,2]
[421926207,1778343032000,-278.19130514,0.00015285,2]
[421926206,1778343032000,-506.26323365,0.00015,5]
[421926208,1778343032000,-1221.06607513,0.00015301,2]
[421926209,1778343032000,-1200.0,0.00015601,2]
[421926210,1778343032000,-300.0,0.00015601,2]
[421926211,1778343032000,-2500.0,0.00015602,2]
[421926218,1778343032000,-151.0,0.00016049,2]
[421926214,1778343032000,-151.0,0.00016049,2]
[421926215,1778343032000,-151.0,0.00016049,2]
[421926213,1778343032000,-151.0,0.00016049,2]
[421926212,1778343032000,-2500.0,0.00015602,2]
[421926217,1778343032000,-151.0,0.00016049,2]
[421926216,1778343032000,-151.0,0.00016049,2]
[421926220,1778343032000,-151.0,0.00016049,2]
[421926219,1778343032000,-151.0,0.00016049,2]
[421926223,1778343032000,-250.0,0.000165,2]
[421926221,1778343032000,-151.0,0.00016049,2]
[421926222,1778343032000,-2500.0,0.000165,2]
[421926225,1778343032000,-250.0,0.000165,2]
[421926227,1778343032000,-17128.0548891,0.00016819,2]
[421926228,1778343032000,-420.0,0.00017064,2]
[421926262,1778343032000,-193371.12319946,0.00017839,2]
[421926226,1778343032000,-384.22620767,0.000165,2]
[421926266,1778343032000,-502.50768999,0.00017873,2]
[421926301,1778343032000,-1069.0,0.00018396,2]
[421926304,1778343032000,-1000.0,0.00018421,2]
[421926303,1778343032000,-351.55653234,0.00018421,2]
[421926305,1778343032000,-169.96,0.00018462,2]
[421926308,1778343032000,-587.0,0.00018664,2]
[421926307,1778343032000,-983.7392912,0.00018568,2]
[421926310,1778343032000,-1000.0,0.00018721,2]
[421926309,1778343032000,-3456.31784331,0.00018709,2]
[421926312,1778343032000,-624.0,0.00018756,2]
[421926311,1778343032000,-960.99722472,0.00018721,2]
[421926314,1778343032000,-1070.674,0.00018756,2]
[421926316,1778343032000,-1267.0,0.00018756,2]
[421926319,1778343032000,-1500.0,0.00018968,2]
[421926318,1778343032000,-1969.88635997,0.00018757,2]
[421926315,1778343032000,-3539.0,0.00018756,2]
[421926317,1778343032000,-151.882,0.00018756,2]
[421926321,1778343032000,-3627.0,0.00019,2]
[421926320,1778343032000,-158.0,0.00019,2]
[421926324,1778343032000,-1505.54396773,0.00019268,2]
[421926322,1778343032000,-1006.48136939,0.00019116,2]
[421926264,1778343032000,-67680.71654467,0.00017839,2]
[421926323,1778343032000,-169.96,0.0001914,2]
[421926302,1778343032000,-164.4,0.0001841,2]
[421926313,1778343032000,-1352.0,0.00018756,2]
[421926298,1778343032000,-500.0,0.00018173,2]
[421926265,1778343032000,-4657.2932,0.0001784,2]
[421926306,1778343032000,-1500.0,0.00018568,2]
[421926263,1778343032000,-245192.66674007,0.00017839,2]
[421926267,1778343032000,-500.0,0.00017873,2]
[421926270,1778343032000,-500.0,0.00017873,2]
[421926273,1778343032000,-500.0,0.00017873,2]
[421926279,1778343032000,-1000.0,0.00018021,2]
[421926285,1778343032000,-13351.06305979,0.0001814,2]
[421926287,1778343032000,-500.0,0.00018173,2]
[421926275,1778343032000,-1002.24165791,0.00018021,2]
[421926289,1778343032000,-500.0,0.00018173,2]
[421926283,1778343032000,-2000.0,0.00018044,2]
[421926277,1778343032000,-503.11139705,0.00018021,2]
[421926291,1778343032000,-192.16740359,0.00018173,2]
[421926292,1778343032000,-500.0,0.00018173,2]
[421926281,1778343032000,-1000.0,0.00018021,2]
[421926293,1778343032000,-410.60620842,0.00018173,2]
[421926295,1778343032000,-500.0,0.00018173,2]
[421926294,1778343032000,-500.44999927,0.00018173,2]
[421926296,1778343032000,-520.99196638,0.00018173,2]
[421926297,1778343032000,-500.0,0.00018173,2]
[421926299,1778343032000,-159.91920192,0.00018367,2]
[421926300,1778343032000,-191.9030423,0.00018367,2]
[421926364,1778343033000,-286.0,0.00022,2]
[421926361,1778343033000,-150.0,0.00021918,2]
[421926360,1778343033000,-5000.0,0.00021918,2]
[421926363,1778343033000,-1067.0,0.00022,2]
[421926358,1778343033000,-3539.0,0.00021756,2]
[421926362,1778343033000,-586.0,0.00022,2]
[421926356,1778343033000,-305.838,0.00021756,2]
[421926355,1778343033000,-341.32856282,0.000217,2]
[421926359,1778343033000,-225.0,0.00021803,5]
[421926366,1778343033000,-3627.0,0.00022,2]
[421926357,1778343033000,-925.0,0.00021756,2]
[421926365,1778343033000,-158.0,0.00022,2]
[421926377,1778343033000,-586.0,0.00023,2]
[421926370,1778343033000,-1152.0,0.00022328,2]
[421926367,1778343033000,-2000.0,0.00022054,2]
[421926369,1778343033000,-700.0,0.0002227,2]
[421926372,1778343033000,-171.10429463,0.00022407,2]
[421926376,1778343033000,-1969.88635997,0.00022984,2]
[421926375,1778343033000,-180.9642194,0.00022831,2]
[421926374,1778343033000,-1500.0,0.00022696,2]
[421926371,1778343033000,-164.4,0.00022353,2]
[421926373,1778343033000,-171.10429462,0.00022407,2]
[421926379,1778343033000,-286.0,0.00023,2]
[421926382,1778343033000,-1067.0,0.00024,2]
[421926353,1778343033000,-1969.88635997,0.00021575,2]
[421926368,1778343033000,-1000.0,0.00022148,2]
[421926354,1778343033000,-500.0,0.000216,2]
[421926328,1778343033000,-1793.0,0.0002,2]
[421926348,1778343033000,-247.72,0.00021273,2]
[421926325,1778343033000,-2000.0,0.00019516,2]
[421926327,1778343033000,-2701.206949,0.0002,2]
[421926330,1778343033000,-286.0,0.0002,2]
[421926329,1778343033000,-1067.0,0.0002,2]
[421926383,1778343033000,-286.0,0.00024,2]
[421926326,1778343033000,-586.0,0.0002,2]
[421926331,1778343033000,-5495.67,0.0002,2]
[421926332,1778343033000,-158.0,0.0002,2]
[421926333,1778343033000,-2000.0,0.00020049,2]
[421926335,1778343033000,-1969.88635997,0.00020166,2]
[421926341,1778343033000,-158.54,0.00020732,2]
[421926337,1778343033000,-287.0,0.00020397,5]
[421926351,1778343033000,-195.16,0.00021273,2]
[421926339,1778343033000,-4823.37551607,0.00020544,5]
[421926336,1778343033000,-164.4,0.00020381,2]
[421926338,1778343033000,-823.0,0.00020414,2]
[421926334,1778343033000,-1813.94691139,0.00020064,2]
[421926342,1778343033000,-900.0,0.0002087,2]
[421926343,1778343033000,-586.0,0.00021,2]
[421926344,1778343033000,-1067.0,0.00021,2]
[421926346,1778343033000,-158.0,0.00021,2]
[421926345,1778343033000,-286.0,0.00021,2]
[421926347,1778343033000,-798.75,0.00021273,2]
[421926352,1778343033000,-526.524,0.00021396,2]
[421926350,1778343033000,-3730.54,0.00021273,2]
[421926349,1778343033000,-1092.46,0.00021273,2]
[421926340,1778343033000,-1392.84202817,0.00020712,2]
[421926381,1778343033000,-586.0,0.00024,2]
[421926378,1778343033000,-1067.0,0.00023,2]
[421926384,1778343033000,-2000.0,0.00024058,2]
[421926416,1778343033000,-179.518139,0.00025287,14]
[421926426,1778343033000,-247.72,0.00025786,2]
[421926417,1778343033000,-152.43,0.00025342,30]
[421926420,1778343033000,-921.35,0.00025523,2]
[421926421,1778343033000,-212.37129995,0.00025571,2]
[421926418,1778343033000,-155.02,0.00025342,7]
[421926419,1778343033000,-155.02,0.00025514,30]
[421926424,1778343033000,-350.0,0.00025753,2]
[421926423,1778343033000,-155.02,0.00025685,2]
[421926425,1778343033000,-798.75,0.00025786,2]
[421926422,1778343033000,-152.43,0.00025685,2]
[421926428,1778343033000,-3730.54,0.00025786,2]
[421926414,1778343033000,-250.0,0.00025205,2]
[421926431,1778343033000,-1969.88635997,0.00025803,2]
[421926430,1778343033000,-1098.85724371,0.00025803,2]
[421926433,1778343033000,-155.02,0.00025856,7]
[421926432,1778343033000,-921.35,0.00025811,7]
[421926437,1778343033000,-155.02,0.00026198,2]
[421926429,1778343033000,-195.16,0.00025786,2]
[421926436,1778343033000,-921.35,0.00026099,30]
[421926434,1778343033000,-152.43,0.00026027,7]
[421926438,1778343033000,-164.4,0.00026296,2]
[421926439,1778343033000,-450.0,0.00026301,2]
[421926440,1778343033000,-152.43,0.0002637,30]
[421926441,1778343033000,-155.02,0.0002637,7]
[421926380,1778343033000,-212.37129995,0.00023744,2]
[421926435,1778343033000,-155.02,0.00026027,30]
[421926415,1778343033000,-921.35,0.00025234,30]
[421926427,1778343033000,-1092.46,0.00025786,2]
[421926413,1778343033000,-797.09072193,0.00025174,2]
[421926412,1778343033000,-155.02,0.00025171,2]
[421926385,1778343033000,-1392.84202817,0.00024076,2]
[421926387,1778343033000,-500.7854403,0.00024078,2]
[421926389,1778343033000,-164.4,0.00024324,2]
[421926388,1778343033000,-314.0,0.000243,2]
[421926391,1778343033000,-1969.88635997,0.00024394,2]
[421926390,1778343033000,-1098.85724371,0.00024394,2]
[421926392,1778343033000,-1000.0,0.00024626,2]
[421926399,1778343033000,-155.02,0.00024658,2]
[421926395,1778343033000,-1000.0,0.00024658,2]
[421926393,1778343033000,-150.0,0.00024658,2]
[421926396,1778343033000,-212.37129995,0.00024658,2]
[421926394,1778343033000,-373.67,0.00024658,2]
[421926400,1778343033000,-925.0,0.00024756,2]
[421926386,1778343033000,-500.0,0.00024078,2]
[421926410,1778343033000,-3627.0,0.00025,2]
[421926397,1778343033000,-152.43,0.00024658,2]
[421926406,1778343033000,-1084.4007416,0.00025,2]
[421926409,1778343033000,-155.02,0.00025,30]
[421926405,1778343033000,-603.15948779,0.00025,2]
[421926411,1778343033000,-158.54,0.0002517,2]
[421926408,1778343033000,-152.43,0.00025,7]
[421926407,1778343033000,-288.0,0.00025,2]
[421926404,1778343033000,-229.54203604,0.00024967,2]
[421926402,1778343033000,-155.02,0.00024829,7]
[421926401,1778343033000,-1028.46,0.00024756,2]
[421926398,1778343033000,-921.35,0.00024658,2]
[421926403,1778343033000,-921.35,0.00024946,7]
[421926479,1778343034000,-921.35,0.00027541,7]
[421926482,1778343034000,-518.91642051,0.00027671,2]
[421926480,1778343034000,-432.43035042,0.00027578,2]
[421926481,1778343034000,-638.0,0.00027671,2]
[421926478,1778343034000,-662.24,0.00027541,7]
[421926471,1778343034000,-373.67,0.00027397,2]
[421926476,1778343034000,-8658.46,0.00027397,10]
[421926475,1778343034000,-10390.16,0.00027397,10]
[421926474,1778343034000,-12468.19,0.00027397,10]
[421926468,1778343034000,-518.91642051,0.00027397,2]
[421926483,1778343034000,-152.43,0.00027739,2]
[421926477,1778343034000,-1392.84202817,0.0002744,2]
[421926484,1778343034000,-432.43035042,0.00027758,2]
[421926493,1778343034000,-921.35,0.00028118,2]
[421926487,1778343034000,-921.35,0.0002783,30]
[421926494,1778343034000,-432.43035042,0.00028119,2]
[421926485,1778343034000,-500.0,0.000278,7]
[421926492,1778343034000,-662.24,0.00028118,2]
[421926495,1778343034000,-150.0,0.00028192,2]
[421926491,1778343034000,-152.43,0.00028082,7]
[421926490,1778343034000,-3623.0,0.00028,2]
[421926489,1778343034000,-150.17,0.00028,2]
[421926488,1778343034000,-432.43035042,0.00027939,2]
[421926496,1778343034000,-638.0,0.00028205,3]
[421926500,1778343034000,-662.24,0.00028406,7]
[421926499,1778343034000,-432.43035042,0.000283,2]
[421926486,1778343034000,-662.24,0.0002783,30]
[421926470,1778343034000,-1500.0,0.00027397,2]
[421926501,1778343034000,-921.35,0.00028406,7]
[421926467,1778343034000,-152.43,0.00027397,30]
[421926443,1778343034000,-921.35,0.00026388,2]
[421926442,1778343034000,-662.24,0.00026388,2]
[421926444,1778343034000,-212.37129995,0.00026484,2]
[421926449,1778343034000,-424.0,0.00026687,10]
[421926445,1778343034000,-662.24,0.00026676,7]
[421926446,1778343034000,-921.35,0.00026676,7]
[421926447,1778343034000,-670.0,0.00026687,10]
[421926448,1778343034000,-582.0,0.00026687,10]
[421926450,1778343034000,-152.43,0.00026712,2]
[421926451,1778343034000,-550.0,0.00026849,2]
[421926456,1778343034000,-2565.538697,0.0002701,2]
[421926462,1778343034000,-921.35,0.00027253,2]
[421926461,1778343034000,-662.24,0.00027253,2]
[421926457,1778343034000,-152.43,0.00027055,7]
[421926459,1778343034000,-1098.85724371,0.00027212,2]
[421926454,1778343034000,-921.35,0.00026964,30]
[421926453,1778343034000,-662.24,0.00026964,30]
[421926460,1778343034000,-1969.88635997,0.00027212,2]
[421926455,1778343034000,-2000.0,0.00027,2]
[421926452,1778343034000,-150.0,0.00026849,2]
[421926458,1778343034000,-638.0,0.00027137,2]
[421926463,1778343034000,-700.0,0.0002737,2]
[421926465,1778343034000,-212.37129995,0.00027397,2]
[421926464,1778343034000,-201.0040537,0.00027387,2]
[421926466,1778343034000,-242.63068961,0.00027397,30]
[421926472,1778343034000,-300.0,0.00027397,2]
[421926469,1778343034000,-432.43035045,0.00027397,2]
[421926473,1778343034000,-14961.83,0.00027397,10]
[421926498,1778343034000,-164.4,0.00028267,2]
[421926512,1778343034000,-159.8,0.00028422,7]
[421926508,1778343034000,-159.71,0.00028422,2]
[421926526,1778343034000,-614.23,0.00028725,2]
[421926529,1778343034000,-157.05,0.0002875,30]
[421926527,1778343034000,-638.0,0.00028739,3]
[421926540,1778343034000,-157.05,0.00028871,7]
[421926549,1778343034000,-151.0,0.00028979,7]
[421926547,1778343034000,-614.23,0.00028947,7]
[421926548,1778343034000,-151.0,0.00028947,7]
[421926542,1778343034000,-151.0,0.00028915,7]
[421926538,1778343034000,-155.498099,0.00028852,7]
[421926543,1778343034000,-151.0,0.00028915,7]
[421926545,1778343034000,-614.23,0.00028915,2]
[421926546,1778343034000,-157.05,0.00028931,30]
[421926534,1778343034000,-151.0,0.00028852,7]
[421926539,1778343034000,-614.23,0.00028852,7]
[421926544,1778343034000,-250.91886,0.00028915,7]
[421926550,1778343034000,-614.23,0.00028979,30]
[421926553,1778343034000,-614.23,0.00029042,7]
[421926551,1778343034000,-157.05,0.00028991,2]
[421926552,1778343034000,-614.23,0.0002901,2]
[421926557,1778343034000,-245.401633,0.00029074,7]
[421926554,1778343034000,-157.05,0.00029052,7]
[421926556,1778343034000,-245.401633,0.00029074,7]
[421926555,1778343034000,-151.0,0.00029074,7]
[421926558,1778343034000,-245.401633,0.00029074,7]
[421926559,1778343034000,-245.401633,0.00029074,7]
[421926505,1778343034000,-159.71,0.00028422,2]
[421926541,1778343034000,-614.23,0.00028883,30]
[421926536,1778343034000,-155.498099,0.00028852,7]
[421926537,1778343034000,-155.498099,0.00028852,7]
[421926524,1778343034000,-662.24,0.00028695,30]
[421926497,1778343034000,-158.13,0.00028219,3]
[421926532,1778343034000,-157.05,0.0002881,2]
[421926502,1778343034000,-159.71,0.00028422,2]
[421926507,1778343034000,-159.71,0.00028422,30]
[421926506,1778343034000,-159.71,0.00028422,7]
[421926503,1778343034000,-159.71,0.00028422,7]
[421926509,1778343034000,-159.71,0.00028422,7]
[421926510,1778343034000,-159.71,0.00028422,30]
[421926515,1778343034000,-1098.85724371,0.00028621,2]
[421926513,1778343034000,-432.43035042,0.0002848,2]
[421926560,1778343034000,-151.0,0.00029074,7]
[421926516,1778343034000,-1969.88635997,0.00028621,2]
[421926517,1778343034000,-157.05,0.0002863,2]
[421926519,1778343034000,-1332.09768977,0.00028646,15]
[421926504,1778343034000,-159.71,0.00028422,30]
[421926514,1778343034000,-183.0,0.00028575,120]
[421926530,1778343034000,-614.23,0.00028756,7]
[421926531,1778343034000,-614.23,0.00028788,30]
[421926535,1778343034000,-155.498099,0.00028852,7]
[421926521,1778343034000,-432.43035042,0.00028661,2]
[421926525,1778343034000,-921.35,0.00028695,30]
[421926533,1778343034000,-614.23,0.0002882,2]
[421926522,1778343034000,-157.05,0.0002869,7]
[421926518,1778343034000,-614.23,0.0002863,2]
[421926511,1778343034000,-159.71,0.00028422,2]
[421926520,1778343034000,-614.23,0.00028661,7]
[421926528,1778343034000,-568.926,0.00028739,20]
[421926523,1778343034000,-614.23,0.00028693,30]
[421926563,1778343035000,-157.05,0.00029112,30]
[421926562,1778343035000,-614.23,0.00029105,2]
[421926567,1778343035000,-614.23,0.00029201,2]
[421926564,1778343035000,-614.23,0.00029137,7]
[421926561,1778343035000,-614.23,0.00029074,30]
[421926565,1778343035000,-614.23,0.00029169,30]
[421926566,1778343035000,-157.05,0.00029172,2]
[421926568,1778343035000,-159.91920192,0.00029215,30]
[421926569,1778343035000,-117.97715548,0.00029232,7]
[421926571,1778343035000,-614.37,0.00029232,7]
[421926572,1778343035000,-600.94524225,0.00029273,4]
[421926570,1778343035000,-39.10284452,0.00029232,7]
[421926588,1778343038000,-501.32,0.00028422,30]
[421926586,1778343038000,-501.32,0.00028422,2]
[421926584,1778343038000,-501.32,0.00028422,7]
[421926579,1778343038000,-106.98436881,0.00028422,2]
[421926583,1778343038000,-501.32,0.00028422,2]
[421926578,1778343038000,-78.87800717,0.00027397,2]
[421926582,1778343038000,-501.32,0.00028422,30]
[421926581,1778343038000,-501.32,0.00028422,7]
[421926577,1778343038000,-213.2538148,0.00021918,2]
[421926576,1778343038000,-654.72393607,0.00027397,2]
[421926575,1778343038000,-766.39805676,0.00027397,2]
[421926587,1778343038000,-501.32,0.00028422,7]
[421926580,1778343038000,-394.33563119,0.00028422,2]
[421926590,1778343038000,-501.32,0.00028422,7]
[421926607,1778343038000,-317.05586,0.0002982,2]
[421926593,1778343038000,-242.63068961,0.00029452,30]
[421926608,1778343038000,-317.05586,0.0002982,2]
[421926605,1778343038000,-638.0,0.00029807,4]
[421926610,1778343038000,-17369.72189805,0.0002983,2]
[421926600,1778343038000,-350.0,0.00029686,2]
[421926609,1778343038000,-317.05586,0.0002982,2]
[421926611,1778343038000,-380.52932165,0.0002983,2]
[421926585,1778343038000,-501.32,0.00028422,30]
[421926597,1778343038000,-150.0,0.00029601,2]
[421926594,1778343038000,-212.39795071,0.00029452,2]
[421926595,1778343038000,-700.0,0.00029494,3]
[421926592,1778343038000,-870.0,0.00029273,10]
[421926591,1778343038000,-37.05475775,0.00029273,4]
[421926589,1778343038000,-501.32,0.00028422,2]